fUST/lending_fUST_20241107
["ID","MTS","AMOUNT","RATE_DAILY","PERIOD"]
[341555687,1730979713549,1169.27083333,0.00026417,2]
[341555688,1730979739875,202.622063,0.00028573,2]
[341555689,1730979775751,1169.27083333,0.00024559,2]
[341555690,1730979837936,1169.27083333,0.000227,2]
[341555691,1730979866651,250.0,0.00028861,2]
[341555692,1730979896379,502.0439185,0.00028861,2]
[341555693,1730979900699,1169.27083333,0.00020841,2]
[341555694,1730979972420,271.084523,0.00013973,2]
[341555716,1730980109527,1094.482211,0.00028951,2]
[341555717,1730980109886,1094.482211,0.00029636,2]
[341555761,1730980205295,325.794382,0.00028919,2]
[341555800,1730980232601,-400.0,0.00030135,2]
[341555803,1730980232616,-387.534506,0.00030135,2]
[341555825,1730980238839,-12.465494,0.00030135,2]
[341555826,1730980238853,-708.50517776,0.00030135,2]
[341555827,1730980238869,-460.76565557,0.00030135,2]
[341555833,1730980239021,-500.0,0.00030136,2]
[341555834,1730980239033,-1.63930462,0.00030136,2]
[341555835,1730980239046,-281.65567258,0.00030136,2]
[341555850,1730980240450,-216.7050228,0.00030136,2]
[341555851,1730980240463,-500.0,0.00030136,2]
[341555852,1730980240474,-500.0,0.00030136,2]
[341555853,1730980240484,-93.56663814,0.00030321,2]
[341555855,1730980240497,-1000.91557286,0.00030321,2]
[341555857,1730980240507,-500.0,0.00030408,2]
[341555859,1730980240517,-505.06550275,0.00030408,2]
[341555861,1730980240526,-500.0,0.00030408,2]
[341555863,1730980240540,-500.0,0.00030408,2]
[341555865,1730980240550,-500.0,0.00030408,2]
[341555867,1730980240560,-500.0,0.00030408,2]
[341555869,1730980240571,-1005.91879093,0.00030408,2]
[341555871,1730980240585,-1407.75120907,0.00030408,2]
[341555873,1730980240595,-500.0,0.00030408,2]
[341555876,1730980240606,-438.78585899,0.00030408,2]
[341556000,1730980265315,1169.27083333,0.00028276,2]
[341556001,1730980306605,5000.0,0.00032409,30]
[341556002,1730980327960,1169.27083333,0.00026417,2]
[341556004,1730980361980,511.6064451,0.00028964,2]
[341556005,1730980390260,1169.27083333,0.00024559,2]
[341556006,1730980643991,173.315617,0.00013973,2]
[341556007,1730980644246,173.315617,0.00029349,2]
[341556009,1730980717523,24900.0,0.00029075,2]
[341556010,1730980721394,191.912081,0.00029075,2]
[341556011,1730980738195,3000.0,0.00029075,2]
[341556012,1730980740446,162.897191,0.00029075,2]
[341556013,1730980815476,1169.27083333,0.00028494,2]
[341556020,1730980877771,1169.27083333,0.00026581,2]
[341556021,1730980941925,1169.27083333,0.00024667,2]
[341556022,1730981004710,1169.27083333,0.00022754,2]
[341556023,1730981066944,1169.27083333,0.00020841,2]
[341556036,1730981295010,176.048545,0.00013973,2]
[341556037,1730981318934,162.897192,0.00029264,2]
[341556047,1730981430376,1169.27083333,0.00028494,2]
[341556065,1730981432818,-400.0,0.00030406,2]
[341556066,1730981432830,-217.4066,0.00030406,2]
[341556132,1730981439097,-182.5934,0.00030406,2]
[341556133,1730981439110,-500.0,0.00030408,2]
[341556134,1730981439120,-500.0,0.00030582,2]
[341556135,1730981439130,-500.0,0.00030582,2]
[341556136,1730981439140,-500.0,0.00030582,2]
[341556137,1730981439150,-500.0,0.00030582,2]
[341556138,1730981439161,-500.0,0.00030582,2]
[341556139,1730981439172,-500.0,0.00030582,2]
[341556140,1730981439182,-500.0,0.00030582,2]
[341556141,1730981439191,-500.0,0.00030582,2]
[341556142,1730981439200,-500.0,0.00030582,2]
[341556143,1730981439210,-512.17141641,0.00030582,2]
[341556144,1730981439221,-500.0,0.00030582,2]
[341556145,1730981439230,-500.0,0.00030582,2]
[341556146,1730981439240,-831.47,0.0003068,2]
[341556147,1730981439250,-923.7,0.0003068,2]
[341556148,1730981439261,-498.36,0.0003068,2]
[341556149,1730981439270,-500.0,0.0003068,2]
[341556150,1730981439280,-3152.24,0.0003068,2]
[341556151,1730981439290,-500.0,0.0003068,2]
[341556152,1730981439299,-500.0,0.0003068,2]
[341556153,1730981439308,-500.0,0.0003068,2]
[341556154,1730981439318,-181.35355691,0.0003068,2]
[341556155,1730981439328,-500.0,0.0003068,2]
[341556156,1730981439338,-500.0,0.0003068,2]
[341556157,1730981439349,-500.0,0.0003068,2]
[341556158,1730981439358,-607.2393598,0.0003068,2]
[341556159,1730981439367,-604.51,0.0003068,2]
[341556160,1730981439377,-500.0,0.0003068,2]
[341556161,1730981439386,-11.60007628,0.00030681,2]
[341556251,1730981443542,-488.39992372,0.00030681,2]
[341556253,1730981443552,-500.0,0.00030681,2]
[341556255,1730981443561,-500.0,0.00030681,2]
[341556257,1730981443570,-500.0,0.00030681,2]
[341556259,1730981443580,-500.0,0.00030682,2]
[341556261,1730981443589,-151.0,0.00030742,6]
[341556263,1730981443599,-5020.57379014,0.00030756,2]
[341556264,1730981443608,-500.0,0.00030856,2]
[341556266,1730981443617,-521.43299464,0.00030856,2]
[341556268,1730981443626,-500.0,0.00030856,2]
[341556270,1730981443635,-578.92606275,0.00030856,2]
[341556272,1730981443644,-500.0,0.00030856,2]
[341556274,1730981443653,-500.0,0.00030856,2]
[341556276,1730981443663,-427.66722864,0.00030954,2]
[341556293,1730981443812,-403.80277136,0.00030954,2]
[341556295,1730981443822,-923.7,0.00030954,2]
[341556297,1730981443832,-500.0,0.00030954,2]
[341556299,1730981443841,-3152.24,0.00030954,2]
[341556302,1730981443860,-500.0,0.00030954,2]
[341556304,1730981443874,-500.0,0.00030954,2]
[341556306,1730981443886,-500.0,0.00030954,2]
[341556308,1730981443896,-500.0,0.00030954,2]
[341556310,1730981443906,-604.51,0.00030954,2]
[341556312,1730981443916,-500.0,0.00030954,2]
[341556315,1730981443927,-500.0,0.00030955,2]
[341556317,1730981443937,-500.0,0.00030955,2]
[341556319,1730981443948,-500.0,0.00030955,2]
[341556321,1730981443958,-270.40546962,0.00030955,7]
[341556323,1730981443969,-211.2285788,0.00030956,2]
[341556325,1730981443978,-487.88702276,0.0003113,2]
[341556327,1730981443991,-12.11297724,0.0003113,2]
[341556329,1730981444001,-500.0,0.0003113,2]
[341556330,1730981444011,-500.0,0.0003113,2]
[341556331,1730981444021,-274.88234141,0.0003113,2]
[341556332,1730981444030,-151.0,0.00031149,7]
[341556333,1730981444040,-831.47,0.00031228,2]
[341556335,1730981444050,-923.7,0.00031228,2]
[341556337,1730981444060,-500.0,0.00031228,2]
[341556339,1730981444070,-3152.24,0.00031228,2]
[341556340,1730981444080,-500.0,0.00031228,2]
[341556342,1730981444089,-500.0,0.00031228,2]
[341556344,1730981444102,-200.72,0.00031228,2]
[341556346,1730981444112,-500.0,0.00031228,2]
[341556348,1730981444124,-604.51,0.00031228,2]
[341556350,1730981444133,-500.0,0.00031228,2]
[341556352,1730981444143,-500.0,0.00031229,2]
[341556354,1730981444155,-500.0,0.00031229,2]
[341556356,1730981444167,-500.0,0.00031229,2]
[341556358,1730981444177,-500.0,0.00031404,2]
[341556360,1730981444186,-500.0,0.00031404,2]
[341556362,1730981444195,-500.0,0.00031404,2]
[341556364,1730981444205,-500.0,0.0003148,2]
[341556366,1730981444215,-213.78790864,0.0003148,2]
[341556368,1730981444224,-500.0,0.0003148,2]
[341556370,1730981444234,-366.5665949,0.0003148,2]
[341556372,1730981444245,-465.44323665,0.0003148,2]
[341556374,1730981444262,-12265.51829128,0.00031481,2]
[341556376,1730981444273,-831.47,0.00031502,2]
[341556378,1730981444284,-923.7,0.00031502,2]
[341556380,1730981444295,-500.0,0.00031502,2]
[341556382,1730981444306,-3152.24,0.00031502,2]
[341556384,1730981444315,-500.0,0.00031502,2]
[341556386,1730981444325,-500.0,0.00031502,2]
[341556388,1730981444334,-500.0,0.00031502,2]
[341556390,1730981444345,-604.51,0.00031502,2]
[341556392,1730981444360,-500.0,0.00031502,2]
[341556394,1730981444369,-500.0,0.00031503,2]
[341556396,1730981444379,-500.0,0.00031503,2]
[341556398,1730981444389,-500.0,0.00031503,2]
[341556400,1730981444398,-176.048545,0.00031546,2]
[341556402,1730981444408,-151.0,0.00031557,7]
[341556404,1730981444418,-500.0,0.00031573,2]
[341556406,1730981444429,-500.0,0.0003158,2]
[341556409,1730981444440,-188.26648097,0.0003158,2]
[341556410,1730981444450,-500.0,0.0003158,2]
[341556411,1730981444460,-304.3645941,0.0003158,2]
[341556413,1730981444470,-600.0,0.0003158,2]
[341556415,1730981444480,-110117.44902981,0.00031581,2]
[341556432,1730981492518,1169.27083333,0.00026581,2]
[341556433,1730981554733,1169.27083333,0.00024667,2]
[341556436,1730981616912,1169.27083333,0.00022754,2]
[341556438,1730981679113,1169.27083333,0.00020841,2]
[341556439,1730981711906,7315.0,0.0003,30]
[341556440,1730981723617,180.27031308,0.0003,7]
[341556441,1730981723844,180.27031308,0.0003,7]
[341556442,1730981726956,790.025437,0.0002937,2]
[341556443,1730981728838,818.2993224,0.0002937,2]
[341556445,1730981761928,219.578467,0.00013973,2]
[341556448,1730981852545,240000.0,0.00020842,2]
[341556451,1730982043361,1169.27083333,0.00028212,2]
[341556452,1730982059011,24900.0,0.00028874,2]
[341556455,1730982093238,150.0,0.00024658,2]
[341556456,1730982106813,1169.27083333,0.0002637,2]
[341556457,1730982163736,219.33797967,0.00024658,2]
[341556458,1730982171743,1169.27083333,0.00024527,2]
[341556459,1730982207896,150.0,0.00026,2]
[341556460,1730982208277,150.0,0.00028,2]
[341556461,1730982224733,1053.36725,0.00028989,2]
[341556462,1730982225079,1053.36725,0.00029674,2]
[341556463,1730982234073,1169.27083333,0.00022685,2]
[341556464,1730982274845,150.0,0.00025,2]
[341556465,1730982275193,150.0,0.00028,2]
[341556466,1730982275599,150.0,0.0003,2]
[341556467,1730982291293,3000.0,0.0002953,2]
[341556468,1730982294764,159.178723,0.00013973,2]
[341556496,1730982340434,150.0,0.00025,2]
[341556497,1730982340782,150.0,0.00028,2]
[341556498,1730982431416,208.485374,0.00028925,2]
[341556512,1730982506596,169.238879,0.00028853,2]
[341556513,1730982523314,14678.82550896,0.00022,30]
[341556557,1730982634962,-1040.71408609,0.00030359,2]
[341556558,1730982634975,-12.65316391,0.00030359,2]
[341556559,1730982634986,-317.86222186,0.00030359,2]
[341556560,1730982634999,-250.0,0.00030359,2]
[341556561,1730982635012,-298.89012609,0.00030359,2]
[341556565,1730982638013,-302.51848538,0.00030359,2]
[341556566,1730982638024,-431.50517877,0.00030482,2]
[341556576,1730982638300,-496.19068308,0.00030482,2]
[341556577,1730982638313,-1000.0,0.000305,10]
[341556578,1730982638323,-927.69586184,0.00030531,2]
[341556579,1730982638333,-400.0,0.00030579,2]
[341556580,1730982638342,-400.0,0.00030579,2]
[341556581,1730982638351,-927.69586184,0.00030579,2]
[341556582,1730982638361,-4393.00206639,0.0003058,2]
[341556583,1730982638370,-500.0,0.00030582,2]
[341556584,1730982638379,-500.0,0.00030582,2]
[341556585,1730982638389,-500.0,0.00030582,2]
[341556586,1730982638398,-319.83589788,0.00030582,2]
[341556587,1730982638407,-502.29552425,0.00030582,2]
[341556588,1730982638416,-692.9,0.00030678,2]
[341556589,1730982638426,-769.75,0.00030678,2]
[341556590,1730982638434,-500.0,0.00030679,2]
[341556591,1730982638445,-500.0,0.00030679,2]
[341556592,1730982638458,-500.0,0.00030679,2]
[341556593,1730982638467,-500.0,0.00030679,2]
[341556594,1730982638477,-500.0,0.00030679,2]
[341556595,1730982638485,-500.0,0.00030679,2]
[341556596,1730982638495,-511.23870961,0.00030679,2]
[341556597,1730982638504,-500.0,0.00030679,2]
[341556598,1730982638513,-500.0,0.00030679,2]
[341556599,1730982638523,-500.0,0.00030679,2]
[341556600,1730982638533,-500.0,0.00030679,2]
[341556601,1730982638543,-500.0,0.00030679,2]
[341556602,1730982638554,-500.0,0.00030679,2]
[341556603,1730982638565,-500.0,0.00030679,2]
[341556604,1730982638574,-500.0,0.00030679,2]
[341556605,1730982638583,-513.88525509,0.00030679,2]
[341556606,1730982638592,-531.58481781,0.00030679,2]
[341556607,1730982638603,-500.0,0.00030679,2]
[341556608,1730982638612,-500.0,0.00030679,2]
[341556609,1730982638622,-506.87323444,0.00030679,2]
[341556610,1730982638631,-500.0,0.00030679,2]
[341556611,1730982638642,-500.0,0.00030679,2]
[341556612,1730982638652,-2626.87,0.00030679,2]
[341556613,1730982638664,-500.0,0.00030679,2]
[341556614,1730982638675,-500.0,0.00030679,2]
[341556615,1730982638687,-503.76,0.00030679,2]
[341556616,1730982638696,-500.0,0.00030679,2]
[341556617,1730982638705,-500.0,0.00030679,2]
[341556618,1730982638714,-500.0,0.00030679,2]
[341556619,1730982638727,-616.78075367,0.00030679,2]
[341556620,1730982638737,-500.0,0.00030679,2]
[341556621,1730982638747,-500.0,0.00030679,2]
[341556622,1730982638756,-500.0,0.00030679,2]
[341556623,1730982638767,-500.0,0.00030679,2]
[341556624,1730982638777,-500.0,0.00030679,2]
[341556625,1730982638786,-500.0,0.0003068,2]
[341556626,1730982638795,-500.0,0.0003068,2]
[341556627,1730982638805,-500.0,0.0003068,2]
[341556628,1730982638816,-500.0,0.0003068,2]
[341556629,1730982638825,-500.0,0.0003068,2]
[341556630,1730982638835,-180.27031308,0.00030828,7]
[341556631,1730982638844,-4393.00206634,0.00030828,2]
[341556632,1730982638853,-692.9,0.00030952,2]
[341556633,1730982638862,-769.75,0.00030952,2]
[341556634,1730982638872,-500.0,0.00030953,2]
[341556635,1730982638881,-2626.87,0.00030953,2]
[341556636,1730982638891,-500.0,0.00030953,2]
[341556637,1730982638902,-500.0,0.00030953,2]
[341556638,1730982638912,-503.76,0.00030953,2]
[341556639,1730982638921,-500.0,0.00030953,2]
[341556640,1730982638932,-500.0,0.00030953,2]
[341556641,1730982638942,-1625.44902618,0.00031,10]
[341556642,1730982638953,-4393.00206634,0.00031076,2]
[341556643,1730982638962,-500.0,0.00031213,5]
[341556644,1730982638973,-500.0,0.00031213,5]
[341556645,1730982638982,-500.0,0.00031213,2]
[341556646,1730982638992,-629.32467151,0.00031213,5]
[341556647,1730982639001,-500.0,0.00031225,2]
[341556648,1730982639011,-349.1844179,0.00031225,2]
[341556649,1730982639021,-500.0,0.00031225,2]
[341556650,1730982639031,-500.0,0.00031225,2]
[341556651,1730982639043,-500.0,0.00031225,2]
[341556652,1730982639053,-500.0,0.00031225,2]
[341556653,1730982639064,-500.0,0.00031225,2]
[341556654,1730982639073,-500.0,0.00031225,2]
[341556655,1730982639083,-500.0,0.00031225,2]
[341556657,1730982639094,-500.0,0.00031225,2]
[341556658,1730982639104,-340.81934236,0.00031225,2]
[341556659,1730982639114,-500.0,0.00031225,2]
[341556660,1730982639123,-500.0,0.00031225,2]
[341556661,1730982639133,-500.0,0.00031225,2]
[341556662,1730982639141,-500.0,0.00031225,2]
[341556663,1730982639152,-446.61870179,0.00031225,2]
[341556664,1730982639164,-500.0,0.00031225,2]
[341556665,1730982639176,-500.0,0.00031225,2]
[341556666,1730982639186,-500.0,0.00031225,2]
[341556667,1730982639198,-380.90167333,0.00031225,2]
[341556668,1730982639208,-692.9,0.00031226,2]
[341556669,1730982639218,-769.75,0.00031226,2]
[341556670,1730982639232,-500.0,0.00031227,2]
[341556671,1730982639241,-500.0,0.00031227,2]
[341556672,1730982639250,-509.23428565,0.00031227,2]
[341556674,1730982639259,-456.1453166,0.00031227,2]
[341556677,1730982639269,-500.0,0.00031227,2]
[341556680,1730982639278,-517.86835852,0.00031227,2]
[341556683,1730982639287,-500.0,0.00031227,2]
[341556686,1730982639298,-500.0,0.00031227,2]
[341556688,1730982639307,-504.75988919,0.00031227,2]
[341556690,1730982639317,-508.17716601,0.00031227,2]
[341556692,1730982639326,-507.3632416,0.00031227,2]
[341556694,1730982639336,-519.30795993,0.00031227,2]
[341556695,1730982639346,-508.31657188,0.00031227,2]
[341556696,1730982639355,-500.0,0.00031227,2]
[341556698,1730982639364,-500.0,0.00031227,2]
[341556700,1730982639374,-500.0,0.00031227,2]
[341556702,1730982639383,-508.74493903,0.00031227,2]
[341556704,1730982639393,-507.80619399,0.00031227,2]
[341556706,1730982639402,-500.0,0.00031227,2]
[341556708,1730982639414,-500.0,0.00031227,2]
[341556709,1730982639423,-506.56649391,0.00031227,2]
[341556710,1730982639433,-500.0,0.00031227,2]
[341556711,1730982639443,-500.0,0.00031227,2]
[341556712,1730982639452,-364.36388051,0.00031227,2]
[341556713,1730982639462,-500.0,0.00031227,2]
[341556714,1730982639472,-500.0,0.00031227,2]
[341556715,1730982639483,-500.0,0.00031227,2]
[341556716,1730982639493,-500.0,0.00031227,2]
[341556717,1730982639502,-500.0,0.00031227,2]
[341556718,1730982639510,-500.0,0.00031227,2]
[341556719,1730982639519,-500.0,0.00031227,2]
[341556720,1730982639528,-2626.87,0.00031227,2]
[341556722,1730982639537,-157.69146679,0.00031227,2]
[341556724,1730982639547,-500.0,0.00031227,2]
[341556725,1730982639556,-419.96347463,0.00031227,2]
[341556726,1730982639565,-508.54255735,0.00031227,2]
[341556727,1730982639575,-508.595833,0.00031227,2]
[341556728,1730982639584,-500.0,0.00031227,2]
[341556729,1730982639594,-500.0,0.00031227,2]
[341556730,1730982639603,-514.25624787,0.00031227,2]
[341556731,1730982639611,-500.0,0.00031227,2]
[341556732,1730982639622,-500.0,0.00031227,2]
[341556733,1730982639633,-503.98103026,0.00031227,2]
[341556734,1730982639643,-500.0,0.00031227,2]
[341556735,1730982639653,-503.76,0.00031227,2]
[341556736,1730982639662,-500.0,0.00031227,2]
[341556737,1730982639672,-500.0,0.00031227,2]
[341556738,1730982639681,-504.39735896,0.00031227,2]
[341556739,1730982639691,-502.79553358,0.00031227,2]
[341556740,1730982639700,-500.0,0.00031227,2]
[341556741,1730982639710,-163.0,0.00031278,2]
[341556742,1730982639719,-451.03,0.00031314,3]
[341556743,1730982639729,-225.51,0.00031314,3]
[341556744,1730982639737,-4393.00206634,0.00031324,2]
[341556745,1730982639747,-503.19,0.0003135,10]
[341556746,1730982639755,-676.56,0.0003136,3]
[341556747,1730982639764,-603.82,0.0003136,10]
[341556748,1730982639773,-500.0,0.0003137,5]
[341556749,1730982639782,-271.39767969,0.0003137,5]
[341556750,1730982639792,-500.0,0.0003137,5]
[341556751,1730982639801,-1000.0,0.00031481,2]
[341556752,1730982639812,-386.74,0.00031491,10]
[341556753,1730982639822,-692.9,0.000315,2]
[341556754,1730982639832,-769.75,0.000315,2]
[341556755,1730982639841,-500.0,0.00031501,2]
[341556756,1730982639852,-500.0,0.00031501,2]
[341556757,1730982639861,-500.0,0.00031501,2]
[341556758,1730982639870,-500.0,0.00031501,2]
[341556759,1730982639879,-500.0,0.00031501,2]
[341556760,1730982639889,-2626.87,0.00031501,2]
[341556761,1730982639898,-500.0,0.00031501,2]
[341556762,1730982639908,-500.0,0.00031501,2]
[341556763,1730982639917,-500.0,0.00031501,2]
[341556764,1730982639926,-503.76,0.00031501,2]
[341556765,1730982639936,-500.0,0.00031501,2]
[341556766,1730982639947,-500.0,0.00031501,2]
[341556767,1730982639957,-159.178723,0.00031546,2]
[341556768,1730982639968,-500.0,0.00031572,2]
[341556769,1730982639978,-4393.00206634,0.00031572,2]
[341556770,1730982639988,-500.0,0.0003158,2]
[341556771,1730982639999,-413.05521587,0.0003158,2]
[341556772,1730982640008,-500.0,0.0003158,2]
[341556773,1730982640019,-600.0,0.0003158,2]
[341556774,1730982640031,-27180.62472278,0.00031581,2]
[341556816,1730982643520,-16297.11867176,0.00031581,2]
[341556841,1730982645851,-216.29096686,0.00031225,2]
[341556842,1730982645861,-165.63306894,0.00031225,2]
[341556843,1730982645871,-11909.86024929,0.00031581,2]
[341556848,1730982657965,24900.0,0.00029352,2]
[341556849,1730982659165,1169.27083333,0.00028456,2]
[341556852,1730982721395,1169.27083333,0.00026552,2]
[341556854,1730982784078,1169.27083333,0.00024649,2]
[341556855,1730982810094,1983.02213,0.00029843,2]
[341556856,1730982820180,702.146721,0.00029843,2]
[341556859,1730982846415,1169.27083333,0.00022745,2]
[341556860,1730982908560,1169.27083333,0.00020842,2]
[341556861,1730982942104,1858.078467,0.0002953,2]
[341556862,1730982966227,208.485375,0.00029589,2]
[341556866,1730983154746,10567.6336302,0.0002981,2]
[341556867,1730983272021,1169.27083333,0.0002871,2]
[341556869,1730983334169,1169.27083333,0.00026743,2]
[341556870,1730983397413,1169.27083333,0.00024776,2]
[341556873,1730983449424,158.447424,0.00013973,2]
[341556874,1730983449645,158.447424,0.00029349,2]
[341556876,1730983459619,1169.27083333,0.00022809,2]
[341556878,1730983517265,468.097814,0.00029606,2]
[341556879,1730983521971,1169.27083333,0.00020842,2]
[341556901,1730983730218,1239.3948347,0.00029814,2]
[341556933,1730983834930,158.657853,0.00029074,2]
[341556934,1730983835190,-468.097814,0.00030291,2]
[341556935,1730983835201,-116.567493,0.00030577,2]
[341556942,1730983838177,-75.61726666,0.00030577,2]
[341556943,1730983838191,-400.0,0.00030677,2]
[341556944,1730983838201,-400.0,0.00030677,2]
[341556946,1730983838212,-1169.27083333,0.00030677,2]
[341556947,1730983838222,-211.2285788,0.00030678,2]
[341556948,1730983838233,-500.0,0.00030678,2]
[341556949,1730983838243,-293.88332121,0.00030678,2]
[341556958,1730983843227,-206.11667879,0.00030678,2]
[341556959,1730983843237,-500.0,0.00030678,2]
[341556960,1730983843247,-505.49044665,0.00030678,2]
[341556961,1730983843257,-500.0,0.00030678,2]
[341556962,1730983843266,-638.41034758,0.00030678,2]
[341556963,1730983843276,-508.76318269,0.00030678,2]
[341556964,1730983843285,-504.88495705,0.00030678,2]
[341556965,1730983843294,-500.0,0.00030678,2]
[341556966,1730983843304,-515.88640591,0.00030678,2]
[341556967,1730983843313,-230.63690467,0.00030678,2]
[341556968,1730983843326,-413.79265586,0.00030678,2]
[341556969,1730983843336,-500.0,0.00030678,2]
[341556970,1730983843345,-260.53801076,0.00030678,2]
[341556971,1730983843355,-616.0435116,0.00030678,2]
[341556972,1730983843365,-500.4613757,0.00030678,2]
[341556973,1730983843374,-582.95772983,0.00030678,2]
[341556974,1730983843383,-500.0,0.00030678,2]
[341556975,1730983843393,-434.32065727,0.00030678,2]
[341556977,1730983843402,-540.44155514,0.00030678,2]
[341556978,1730983843411,-513.54947774,0.00030678,2]
[341556979,1730983843420,-535.82859543,0.00030678,2]
[341556981,1730983843430,-600.44291715,0.00030952,2]
[341556983,1730983843439,-511.63305789,0.00030952,2]
[341556985,1730983843449,-468.097814,0.00030976,2]
[341556986,1730983843467,-500.0,0.00031224,2]
[341556988,1730983843477,-139.25629952,0.00031224,2]
[341557049,1730983886178,1169.27083333,0.0002871,2]
[341557050,1730983890261,1045.27379906,0.00027808,2]
[341557055,1730983948339,1169.27083333,0.00026743,2]
[341557057,1730984010499,1169.27083333,0.00024776,2]
[341557058,1730984041013,208.485374,0.00029131,2]
[341557059,1730984056327,498.38427,0.00029131,2]
[341557060,1730984056695,498.38427,0.00029816,2]
[341557061,1730984103242,160.530949,0.00028918,2]
[341557062,1730984217209,47557.69597282,0.0003,14]
[341557063,1730984628401,163.932876,0.00013973,2]
[341557067,1730984683061,1169.27083333,0.00020842,2]
[341557153,1730985032244,-158.657853,0.00027188,2]
[341557154,1730985032255,-163.932876,0.00027641,2]
[341557155,1730985032266,-262.829876,0.00027691,2]
[341557156,1730985032277,-93.86541989,0.00027882,2]
[341557157,1730985032289,-72.26267011,0.00027882,2]
[341557158,1730985032299,-166.12809,0.00028567,2]
[341557159,1730985032310,-166.12809,0.00029252,2]
[341557160,1730985032322,-1169.27083333,0.00029252,2]
[341557161,1730985032333,-1248.95432525,0.0002953,2]
[341557162,1730985032345,-574.25715418,0.0002953,2]
[341557221,1730985043228,-1757.63275747,0.00028275,2]
[341557222,1730985043243,-1028.92117634,0.00028275,2]
[341557223,1730985043336,-999.73389959,0.00028275,2]
[341557224,1730985043346,-600.78801457,0.0002953,2]
[341557225,1730985043355,-300.0,0.00029998,2]
[341557226,1730985043368,-300.0,0.00029998,2]
[341557227,1730985043386,-214.172,0.00029999,24]
[341557229,1730985043395,-2520.7416738,0.0003,14]
[341557239,1730985156671,167.55432,0.00013973,2]
[341557240,1730985294813,1169.27083333,0.00020842,2]
[341557245,1730985837478,163.392773,0.00013973,2]
[341557246,1730985906545,1169.27083333,0.00020842,2]
[341557276,1730986009638,11177.0,0.0002,2]
[341557295,1730986119556,-163.332811,0.00023845,2]
[341557296,1730986119579,-201.0,0.00024,2]
[341557297,1730986119601,-300.0,0.00024206,2]
[341557298,1730986119624,-300.0,0.00024206,2]
[341557299,1730986119647,-16425.5922178,0.00024207,2]
[341557300,1730986119671,-163.392773,0.00024224,2]
[341557301,1730986119694,-12106.6821982,0.00024735,2]
[341557303,1730986125766,678.4047442,0.0002,2]
[341557357,1730986232429,-603.62773288,0.00024734,2]
[341557359,1730986232442,-565.64310045,0.00024734,2]
[341557361,1730986232452,-6392.62759846,0.00024735,2]
[341557533,1730986238703,-2404.35651154,0.00024735,2]
[341557534,1730986238713,-300.0,0.00024779,2]
[341557535,1730986238722,-300.0,0.0002478,2]
[341557536,1730986238731,-220.979794,0.00024881,2]
[341557537,1730986238741,-163.332811,0.00024929,2]
[341557538,1730986238750,-487.5058005,0.00024981,2]
[341557539,1730986238760,-250.0,0.00025157,2]
[341557540,1730986238769,-181.70931782,0.00025448,2]
[341557663,1730986240316,-19.78185598,0.00025448,2]
[341557665,1730986240326,-163.332811,0.00026012,2]
[341557667,1730986240336,-7843.7307495,0.00026019,2]
[341557669,1730986240345,-420.0,0.00026851,2]
[341557670,1730986240355,-163.332811,0.00027096,2]
[341557671,1730986240364,-154.48937784,0.00027172,2]
[341557672,1730986240373,-420.0,0.00027257,2]
[341557673,1730986240382,-159.079105,0.00027272,2]